fUST/lending_fUST_20250810
["ID","MTS","AMOUNT","RATE_DAILY","PERIOD"]
[378200159,1754779848376,-594.08,0.00025145,2]
[378200160,1754779848385,-4243.73116647,0.00025164,2]
[378200161,1754779848395,-168.0,0.00025191,2]
[378200162,1754779848404,-784.28,0.00025305,2]
[378200163,1754779848413,-460.0,0.00025305,2]
[378200164,1754779848422,-1225.65,0.00025305,2]
[378200165,1754779848433,-460.0,0.00025305,2]
[378200166,1754779848442,-460.0,0.00025306,2]
[378200167,1754779848451,-602.73,0.00025306,2]
[378200168,1754779848460,-460.0,0.00025306,2]
[378200169,1754779848469,-517.38,0.00025308,2]
[378200170,1754779848479,-625.52,0.00025308,2]
[378200171,1754779848488,-497.58,0.00025308,2]
[378200172,1754779848498,-291.75,0.00025312,2]
[378200173,1754779848507,-380.0,0.00025333,2]
[378200174,1754779848516,-180.20611319,0.00025368,2]
[378200175,1754779848525,-500.0,0.00025375,2]
[378200176,1754779848535,-564.38,0.0002541,2]
[378200177,1754779848544,-460.0,0.0002541,2]
[378200178,1754779848555,-460.0,0.0002541,2]
[378200179,1754779848564,-1970.1,0.00025418,2]
[378200180,1754779848573,-546.82,0.00025418,2]
[378200181,1754779848583,-594.08,0.00025419,2]
[378200182,1754779848592,-1000.0,0.00025421,2]
[378200183,1754779848601,-380.0,0.00025518,2]
[378200184,1754779848612,-560.0,0.00025546,2]
[378200185,1754779848622,-500.0,0.00025553,2]
[378200186,1754779848632,-784.28,0.00025579,2]
[378200187,1754779848641,-460.0,0.00025579,2]
[378200188,1754779848651,-1225.65,0.00025579,2]
[378200189,1754779848661,-460.0,0.00025579,2]
[378200190,1754779848670,-460.0,0.0002558,2]
[378200191,1754779848681,-602.73,0.0002558,2]
[378200192,1754779848690,-460.0,0.0002558,2]
[378200193,1754779848700,-517.38,0.00025582,2]
[378200194,1754779848711,-625.52,0.00025582,2]
[378200195,1754779848727,-497.58,0.00025582,2]
[378200196,1754779848737,-151.0,0.00025591,2]
[378200197,1754779848746,-294.46,0.00025591,7]
[378200198,1754779848755,-380.0,0.00025624,2]
[378200199,1754779848765,-460.0,0.00025684,2]
[378200200,1754779848775,-460.0,0.00025684,2]
[378200201,1754779848784,-1970.1,0.00025692,2]
[378200202,1754779848794,-546.82,0.00025692,2]
[378200203,1754779848804,-594.08,0.00025693,2]
[378200204,1754779848815,-380.0,0.00025753,2]
[378200205,1754779848824,-380.0,0.0002582,2]
[378200206,1754779848834,-784.28,0.00025853,2]
[378200207,1754779848843,-460.0,0.00025853,2]
[378200208,1754779848852,-1225.65,0.00025853,2]
[378200209,1754779848862,-460.0,0.00025853,2]
[378200210,1754779848872,-460.0,0.00025854,2]
[378200211,1754779848881,-602.73,0.00025854,2]
[378200212,1754779848891,-517.38,0.00025856,2]
[378200213,1754779848901,-625.52,0.00025856,2]
[378200214,1754779848911,-497.58,0.00025856,2]
[378200215,1754779848921,-339.201,0.00025889,11]
[378200216,1754779848932,-460.0,0.00025958,2]
[378200217,1754779848944,-460.0,0.00025958,2]
[378200218,1754779848954,-1970.1,0.00025966,2]
[378200219,1754779848964,-546.82,0.00025966,2]
[378200220,1754779848973,-594.08,0.00025967,2]
[378200221,1754779848984,-660.0,0.00026094,2]
[378200222,1754779848994,-784.28,0.00026127,2]
[378200223,1754779849004,-460.0,0.00026127,2]
[378200224,1754779849015,-1225.65,0.00026127,2]
[378200225,1754779849026,-460.0,0.00026127,2]
[378200226,1754779849036,-220.0,0.00026128,2]
[378200227,1754779849046,-602.73,0.00026128,2]
[378200228,1754779849055,-517.38,0.0002613,2]
[378200229,1754779849065,-625.52,0.0002613,2]
[378200230,1754779849074,-497.58,0.0002613,2]
[378200231,1754779849084,-408.0,0.00026156,2]
[378200232,1754779849093,-415.728,0.00026156,2]
[378200233,1754779849102,-636.0,0.00026156,2]
[378200234,1754779849112,-971.0,0.00026156,2]
[378200235,1754779849121,-2150.0,0.00026156,2]
[378200236,1754779849131,-380.0,0.0002616,2]
[378200237,1754779849140,-380.0,0.00026175,2]
[378200238,1754779849150,-250.0,0.00026201,2]
[378200239,1754779849159,-460.0,0.00026232,2]
[378200240,1754779849169,-460.0,0.00026232,2]
[378200241,1754779849180,-1970.1,0.0002624,2]
[378200242,1754779849191,-546.82,0.0002624,2]
[378200243,1754779849200,-594.08,0.00026241,2]
[378200244,1754779849210,-380.0,0.00026389,2]
[378200245,1754779849220,-784.28,0.00026401,2]
[378200246,1754779849229,-251.55,0.00026401,2]
[378200247,1754779849239,-1225.65,0.00026401,2]
[378200248,1754779849249,-460.0,0.00026401,2]
[378200249,1754779849258,-602.73,0.00026402,2]
[378200250,1754779849268,-517.38,0.00026404,2]
[378200251,1754779849277,-625.52,0.00026404,2]
[378200252,1754779849287,-497.58,0.00026404,2]
[378200253,1754779849297,-460.0,0.00026506,2]
[378200254,1754779849307,-460.0,0.00026506,2]
[378200255,1754779849317,-1970.1,0.00026514,2]
[378200256,1754779849326,-546.82,0.00026514,2]
[378200257,1754779849336,-594.08,0.00026515,2]
[378200258,1754779849346,-383.0,0.00026521,2]
[378200259,1754779849356,-194.5,0.00026586,2]
[378200260,1754779849366,-760.0,0.00026642,2]
[378200261,1754779849376,-784.28,0.00026675,2]
[378200262,1754779849385,-1225.65,0.00026675,2]
[378200263,1754779849395,-460.0,0.00026675,2]
[378200264,1754779849404,-602.73,0.00026676,2]
[378200265,1754779849414,-494.024246,0.00026676,2]
[378200266,1754779849423,-517.38,0.00026678,2]
[378200267,1754779849432,-625.52,0.00026678,2]
[378200268,1754779849442,-497.58,0.00026678,2]
[378200269,1754779849451,-380.0,0.00026684,2]
[378200270,1754779849461,-194.49341114,0.00026767,2]
[378200271,1754779849470,-460.0,0.0002678,2]
[378200272,1754779849479,-460.0,0.0002678,2]
[378200273,1754779849489,-1970.1,0.00026788,2]
[378200274,1754779849498,-546.82,0.00026788,2]
[378200275,1754779849507,-294.46,0.00026788,7]
[378200276,1754779849516,-232.56,0.00026788,7]
[378200277,1754779849526,-594.08,0.00026789,2]
[378200278,1754779849535,-200.0,0.00026797,15]
[378200279,1754779849544,-200.0,0.00026797,15]
[378200280,1754779849554,-200.0,0.00026797,15]
[378200281,1754779849563,-379.0,0.00026797,15]
[378200282,1754779849572,-300.0,0.0002682,2]
[378200283,1754779849582,-150.0,0.00026849,2]
[378200284,1754779849591,-150.0,0.000269,2]
[378200285,1754779849632,-4243.73116647,0.00026918,6]
[378200286,1754779849641,-784.28,0.00026949,2]
[378200287,1754779849651,-1225.65,0.00026949,2]
[378200288,1754779849660,-504.11769324,0.00026949,2]
[378200289,1754779849670,-602.73,0.0002695,2]
[378200290,1754779849679,-517.38,0.00026952,2]
[378200291,1754779849688,-625.52,0.00026952,2]
[378200292,1754779849698,-497.58,0.00026952,2]
[378200293,1754779849707,-380.0,0.00026954,2]
[378200294,1754779849716,-151.0,0.0002696,2]
[378200295,1754779849725,-440.75,0.00027054,2]
[378200296,1754779849735,-460.0,0.00027054,2]
[378200297,1754779849744,-1970.1,0.00027062,2]
[378200298,1754779849753,-546.82,0.00027062,2]
[378200299,1754779849762,-594.08,0.00027063,2]
[378200300,1754779849771,-860.0,0.00027189,2]
[378200301,1754779849780,-784.28,0.00027223,2]
[378200302,1754779849789,-1225.65,0.00027223,2]
[378200303,1754779849799,-602.73,0.00027224,2]
[378200304,1754779849808,-517.38,0.00027226,2]
[378200305,1754779849817,-625.52,0.00027226,2]
[378200306,1754779849827,-497.58,0.00027226,2]
[378200307,1754779849837,-823.0,0.00027257,2]
[378200308,1754779849846,-408.5,0.00027328,2]
[378200309,1754779849855,-594.08,0.00027336,2]
[378200310,1754779849865,-1970.1,0.00027336,2]
[378200311,1754779849875,-546.82,0.00027336,2]
[378200312,1754779849884,-372.2,0.0002735,2]
[378200313,1754779849894,-460.0,0.00027397,2]
[378200314,1754779849903,-460.0,0.00027397,2]
[378200315,1754779849913,-460.7301771,0.00027397,2]
[378200316,1754779849923,-1000.0,0.00027397,5]
[378200317,1754779849932,-1000.0,0.00027397,5]
[378200318,1754779849944,-1000.0,0.00027397,5]
[378200319,1754779849955,-1000.0,0.00027397,5]
[378200320,1754779849965,-1000.0,0.00027397,5]
[378200321,1754779849975,-395.88121819,0.00027397,5]
[378200322,1754779849986,-2649.46,0.00027397,6]
[378200323,1754779849995,-163.4854202,0.00027397,2]
[378200324,1754779850006,-156.31392988,0.00027397,5]
[378200325,1754779850020,-500.0,0.00027397,5]
[378200326,1754779850030,-500.0,0.00027397,5]
[378200327,1754779850039,-250.0,0.00027448,5]
[378200328,1754779850049,-784.32,0.00027496,2]
[378200329,1754779850058,-1225.70446194,0.00027496,2]
[378200330,1754779850067,-602.95743909,0.00027498,2]
[378200331,1754779850077,-517.4598197,0.000275,2]
[378200332,1754779850087,-625.71,0.000275,2]
[378200333,1754779850096,-497.61,0.000275,2]
[378200334,1754779850106,-594.11,0.0002761,2]
[378200335,1754779850115,-1970.30257466,0.0002761,2]
[378200336,1754779850125,-546.9,0.0002761,2]
[378200337,1754779850135,-960.0,0.00027737,2]
[378200338,1754779850144,-294.46,0.00027985,7]
[378200339,1754779850153,-479.5105082,0.00027996,5]
[378200340,1754779850162,-12666.14847857,0.00028,10]
[378200341,1754779850171,-231.92402426,0.00028,10]
[378200342,1754779850182,-312.16666667,0.00028,10]
[378200343,1754779850192,-461.55179734,0.00028,10]
[378200344,1754779850201,-160.0,0.00028,10]
[378200345,1754779850211,-160.0,0.00028,10]
[378200346,1754779850220,-216.61183532,0.00028,10]
[378200347,1754779850229,-203.534174,0.00028,2]
[378200348,1754779850239,-160.0,0.00028,10]
[378200349,1754779850248,-1060.0,0.00028285,2]
[378200350,1754779850257,-151.0,0.00028329,2]
[378200351,1754779850267,-325.0,0.00028435,7]
[378200352,1754779850276,-1400.0,0.00028439,7]
[378200353,1754779850286,-4243.73116647,0.00028673,10]
[378200354,1754779850295,-500.0,0.00028768,2]
[378200355,1754779850304,-1239.74265217,0.00028769,2]
[378200356,1754779850313,-601.63740853,0.000288,2]
[378200357,1754779850323,-1160.0,0.00028833,2]
[378200358,1754779850332,-1000.0,0.00028866,10]
[378200359,1754779850341,-925.0,0.00028866,10]
[378200360,1754779850351,-800.0,0.00028885,2]
[378200361,1754779850360,-800.0,0.00028887,2]
[378200362,1754779850369,-33702.34341307,0.000289,15]
[378200363,1754779850378,-566.881942,0.000289,7]
[378200364,1754779850387,-566.881942,0.000289,7]
[378200365,1754779850396,-677.50539292,0.000289,2]
[378200366,1754779850405,-175.29,0.00028952,15]
[378200367,1754779850415,-166.06,0.00028952,15]
[378200368,1754779850425,-2845.82,0.00028952,15]
[378200369,1754779850437,-800.0,0.00028953,2]
[378200370,1754779850446,-154.184865,0.00028965,10]
[378200371,1754779850455,-1000.0,0.00028973,10]
[378200372,1754779850464,-1000.0,0.00028973,10]
[378200373,1754779850474,-1000.0,0.00028973,10]
[378200374,1754779850483,-1000.0,0.00028973,10]
[378200375,1754779850492,-874.97924429,0.00029,2]
[378200376,1754779850502,-1000.0,0.00029003,10]
[378200377,1754779850511,-158.0,0.00029041,32]
[378200378,1754779850520,-500.0,0.00029042,2]
[378200379,1754779850530,-800.0,0.00029044,2]
[378200380,1754779850539,-175.29,0.00029052,15]
[378200381,1754779850548,-166.06,0.00029052,15]
[378200382,1754779850557,-2845.82,0.00029052,15]
[378200383,1754779850566,-800.0,0.00029103,2]
[378200384,1754779850575,-1000.0,0.0002911,10]
[378200385,1754779850585,-1000.0,0.0002911,10]
[378200386,1754779850594,-1000.0,0.0002911,10]
[378200387,1754779850603,-1000.0,0.0002911,10]
[378200388,1754779850613,-1000.0,0.0002914,10]
[378200389,1754779850622,-175.2967491,0.00029152,15]
[378200390,1754779850631,-166.06,0.00029152,15]
[378200391,1754779850640,-2845.82,0.00029152,15]
[378200392,1754779850649,-408.0,0.00029156,2]
[378200393,1754779850658,-408.0,0.00029156,2]
[378200394,1754779850667,-636.0,0.00029156,2]
[378200395,1754779850677,-971.0,0.00029156,2]
[378200396,1754779850687,-2150.0,0.00029156,2]
[378200397,1754779850696,-200.0,0.0002916,23]
[378200398,1754779850705,-294.46,0.00029182,30]
[378200399,1754779850715,-156.865813,0.00029191,10]
[378200400,1754779850724,-154.184865,0.00029191,10]
[378200401,1754779850733,-166.07587453,0.00029252,15]
[378200402,1754779850742,-2845.82,0.00029252,15]
[378200403,1754779850752,-1400.0,0.00029261,7]
[378200404,1754779850761,-500.0,0.00029316,2]
[378200405,1754779850770,-160.0,0.00029331,5]
[378200406,1754779850780,-2845.82,0.00029352,15]
[378200407,1754779850789,-800.0,0.00029376,2]
[378200408,1754779850798,-1260.0,0.00029381,2]
[378200409,1754779850808,-200.0,0.0002941,15]
[378200410,1754779850817,-200.0,0.0002941,15]
[378200411,1754779850827,-200.0,0.0002941,15]
[378200412,1754779850837,-200.0,0.0002941,15]
[378200413,1754779850846,-200.0,0.0002941,15]
[378200414,1754779850855,-371.0,0.0002941,15]
[378200415,1754779850864,-2845.82,0.00029452,15]
[378200416,1754779850873,-2845.82,0.00029552,15]
[378200417,1754779850882,-800.0,0.0002958,2]
[378200418,1754779850892,-500.0,0.0002959,2]
[378200419,1754779850902,-800.0,0.00029597,2]
[378200420,1754779850911,-800.0,0.000296,2]
[378200421,1754779850922,-1551.193192,0.000296,7]
[378200422,1754779850932,-558.3,0.00029629,2]
[378200423,1754779850944,-5000.0,0.00029638,30]
[378200424,1754779850953,-1152.0,0.00029644,2]
[378200425,1754779850963,-2845.82,0.00029652,15]
[378200426,1754779850972,-154.184865,0.0002968,2]
[378200427,1754779850982,-800.0,0.00029706,2]
[378200428,1754779850991,-154.184865,0.00029725,15]
[378200429,1754779851001,-800.0,0.00029725,2]
[378200430,1754779851013,-800.0,0.00029747,2]
[378200431,1754779851022,-293.85068442,0.00029752,2]
[378200432,1754779851032,-2845.82,0.00029752,15]
[378200433,1754779851042,-186.00832722,0.00029753,30]
[378200434,1754779851052,-1100.0,0.00029756,2]
[378200435,1754779851061,-1200.0,0.00029764,2]
[378200436,1754779851071,-190.0,0.00029799,2]
[378200437,1754779851081,-1100.0,0.00029805,2]
[378200438,1754779851090,-1200.0,0.00029805,2]
[378200439,1754779851100,-2845.82,0.00029852,15]
[378200440,1754779851110,-500.0,0.00029864,2]
[378200441,1754779851119,-1100.0,0.00029868,2]
[378200442,1754779851129,-568.68208278,0.00029871,2]
[378200443,1754779851139,-1100.0,0.00029888,2]
[378200444,1754779851149,-186.00832722,0.0002989,30]
[378200445,1754779851158,-800.0,0.00029898,2]
[378200446,1754779851169,-1100.0,0.00029929,2]
[378200447,1754779851179,-1360.0,0.00029929,2]
[378200448,1754779851189,-1100.0,0.0002993,2]
[378200449,1754779851198,-800.0,0.00029931,2]
[378200450,1754779851208,-2845.82,0.00029952,15]
[378200451,1754779851218,-500.0,0.00029957,2]
[378200452,1754779851228,-300.0,0.00029973,5]
[378200453,1754779851238,-160135.92358282,0.0003,15]
[378200454,1754779851380,-611.42,0.00021308,2]
[378200455,1754779851390,-611.42,0.00021582,2]
[378200456,1754779851399,-611.42,0.00021856,2]
[378200457,1754779851409,-151.0,0.00024222,2]
[378200458,1754779851419,-460.0,0.00025854,2]
[378200459,1754779851429,-460.0,0.00026128,2]
[378200460,1754779851439,-460.0,0.00026402,2]
[378200461,1754779851448,-169.11,0.00026676,2]
[378200462,1754779851458,-2772.68377817,0.0003,15]
[378200463,1754779851470,-15012.22377933,0.0003,15]
[378200464,1754779851628,-460.0,0.00021196,2]
[378200465,1754779851638,-611.42,0.0002213,2]
[378200466,1754779851648,-611.42,0.00022404,2]
[378200467,1754779851657,-611.42,0.00022678,2]
[378200468,1754779851667,-611.42,0.00022952,2]
[378200469,1754779851677,-611.42,0.00023226,2]
[378200470,1754779851686,-611.42,0.000235,2]
[378200471,1754779851695,-611.42,0.00023774,2]
[378200472,1754779851708,-611.42,0.00024048,2]
[378200473,1754779851719,-611.42,0.00024322,2]
[378200474,1754779851729,-2577.15562849,0.0003,15]
[378200475,1754779851742,-7610.2,0.0003,15]
[378200476,1754779851963,-460.0,0.0002147,2]
[378200477,1754779851973,-557.30897376,0.00024596,2]
[378200478,1754779852529,-462.32,0.00021744,2]
[378200479,1754779852538,-527.77735381,0.00023,3]
[378200480,1754779852548,-54.11102624,0.00024596,2]
[378200481,1754779852557,-611.42,0.0002487,2]
[378200482,1754779852568,-10894.19977549,0.0003,15]
[378200483,1754779852580,-82391.63698545,0.0003,15]
[378200484,1754779852589,-391.77772303,0.0003,30]
[378200485,1754779852601,-825.3033446,0.0003,30]
[378200487,1754780026693,3803.85591654,0.000199,2]
[378200488,1754780047482,199.80338576,0.00020997,2]
[378200489,1754780049479,189845.07645409,0.00023,30]
[378200490,1754780168698,247.45567422,0.00020465,2]
[378200491,1754780215775,3473.86464949,0.000199,2]
[378200492,1754780248057,1229.18491882,0.00020997,2]
[378200493,1754780283372,1002.4431412,0.00020121,2]
[378200494,1754780418911,3357.80780448,0.000199,2]
[378200495,1754780453949,2311.40045869,0.00020096,2]
[378200496,1754780453972,22588.59954131,0.00020096,2]
[378200497,1754780530846,461.678032,0.00013699,2]
[378200498,1754780531058,461.678032,0.00020187,2]
[378200500,1754780576719,1075.53680402,0.00020997,2]
[378200501,1754780602009,3245.88939702,0.000199,2]
[378200502,1754780650117,3764.8829568,0.00020096,2]
[378200503,1754780690663,221.782168,0.00020096,2]
[378200504,1754780736853,-172.35598676,0.00021073,2]
[378200505,1754780738341,-305.61884137,0.00021073,2]
[378200506,1754780740424,-207.37198508,0.00021073,2]
[378200507,1754780741856,-239.10701812,0.00021073,2]
[378200508,1754780741879,-161.01606216,0.00021087,2]
[378200509,1754780743910,-183.73718769,0.00021087,2]
[378200510,1754780746018,-215.67572644,0.00021087,2]
[378200511,1754780747628,1000.0,0.00020096,2]
[378200512,1754780749279,-420.50189317,0.00021087,2]
[378200513,1754780751218,-195.88687027,0.00021087,2]
[378200514,1754780753428,-23.18226027,0.00021087,2]
[378200515,1754780753452,-205.45888616,0.00021088,2]
[378200516,1754780755579,-294.54111384,0.00021088,2]
[378200517,1754780755603,-69.20913646,0.00021088,2]
[378200518,1754780757615,-256.41186034,0.00021088,2]
[378200519,1754780759498,-173.45131951,0.00021088,2]
[378200520,1754780760889,-0.92768369,0.00021088,2]
[378200521,1754780760912,-412.95937574,0.00021088,2]
[378200522,1754780764621,-87.04062426,0.00021088,2]
[378200523,1754780764644,-136.16914409,0.00021088,2]
[378200524,1754780771655,211.27116206,0.00020455,2]
[378200525,1754780791995,2858.77056542,0.000199,2]
[378200526,1754780793706,-213.79509063,0.00021088,2]
[378200527,1754780795714,-150.03576528,0.00021088,2]
[378200528,1754780795739,-135.59251311,0.00021088,10]
[378200529,1754780798098,-521.64037147,0.00021088,10]
[378200530,1754780800545,-228.13483478,0.00021088,10]
[378200531,1754780802736,-264.6835185,0.00021088,10]
[378200532,1754780804808,-98.31876214,0.00021088,10]
[378200533,1754780804831,-77.15241061,0.00021088,10]
[378200534,1754780807627,-178.35104848,0.00021088,10]
[378200535,1754780810633,-177.76506674,0.00021088,10]
[378200536,1754780814758,-296.86526874,0.00021088,10]
[378200537,1754780815185,1790.01759039,0.00021,2]
[378200538,1754780816424,-310.17620543,0.00021088,10]
[378200539,1754780816447,-12.56131135,0.00021088,10]
[378200540,1754780817911,-297.30091409,0.00021088,10]
[378200541,1754780820305,-266.42511004,0.00021088,10]
[378200542,1754780820846,2319.89375098,0.00020096,2]
[378200543,1754780820868,755.05634942,0.00020096,2]
[378200544,1754780821944,-152.31541259,0.00021094,2]
[378200545,1754780824944,-147.68458741,0.00021094,2]
[378200546,1754780824967,-59.44643387,0.00021094,2]
[378200547,1754780826596,-240.55356613,0.00021094,2]
[378200548,1754780826619,-23.7003927,0.00021094,2]
[378200549,1754780829075,-276.2996073,0.00021094,2]
[378200550,1754780829100,-23.7003927,0.00021095,2]
[378200551,1754780831145,-275.98493414,0.00021095,2]
[378200552,1754780832532,-175.48314076,0.00021088,10]
[378200553,1754780839343,-441.76536822,0.00021088,10]
[378200554,1754780842482,-306.27872693,0.00021088,10]
[378200555,1754780845364,-230.09056559,0.00021088,10]
[378200556,1754780847817,-82.4121985,0.00021088,10]
[378200557,1754780847842,-162.50916648,0.00021088,10]
[378200558,1754780851569,-309.80327371,0.00021088,10]
[378200559,1754780854406,-208.96323241,0.00021088,10]
[378200560,1754780856616,-300.0,0.00021088,10]
[378200561,1754780859748,-202.58057387,0.00021088,10]
[378200562,1754780861148,-15.45375353,0.00021088,10]
[378200563,1754780861172,-209.58761311,0.00021088,10]
[378200564,1754780862815,-167.47385046,0.00021088,10]
[378200565,1754780866100,-218.52548466,0.00021088,10]
[378200566,1754780868351,-164.35610885,0.00021088,10]
[378200567,1754780871466,-209.7852078,0.00021088,10]
[378200568,1754780872961,-235.2679377,0.00021088,10]
[378200569,1754780875567,-233.22526099,0.00021088,10]
[378200570,1754780875592,-60.94846197,0.00021095,2]
[378200571,1754780879220,-251.29,0.00021088,3]
[378200572,1754780879243,-48.71,0.00021088,10]
[378200573,1754780882161,-288.45010698,0.00021088,10]
[378200574,1754780883801,-157.22112152,0.00021088,10]
[378200575,1754780885926,-151.0,0.00021088,10]
[378200576,1754780888197,-509.56284482,0.00021088,10]
[378200577,1754780889813,-18.03592668,0.00021088,10]
[378200578,1754780889836,-288.45,0.00021088,3]
[378200579,1754780889860,-182.48836722,0.00021094,2]
[378200580,1754780892408,-238.9394979,0.00021088,10]
[378200581,1754780894336,-157.95899934,0.00021088,10]
[378200582,1754780896306,-272.99329005,0.00021088,10]
[378200583,1754780897909,-363.92957975,0.00021088,10]
[378200584,1754780899870,-68.89863296,0.00021088,10]
[378200585,1754780899893,-117.51163278,0.00021094,2]
[378200586,1754780899916,-46.70899527,0.00021095,2]
[378200587,1754780900623,200.1679797,0.00020096,2]
[378200588,1754780901459,-52.65721592,0.00021095,2]
[378200589,1754780901487,-135.2626956,0.00021095,2]
[378200590,1754780903157,-179.62004564,0.00021088,10]
[378200591,1754780905358,-195.92608958,0.00021088,10]
[378200592,1754780907297,-181.57891722,0.00021088,10]
[378200593,1754780909377,-361.80494756,0.00021088,10]
[378200594,1754780909400,-34.69852099,0.00021095,2]
[378200595,1754780911596,-152.54065501,0.00021095,2]
[378200596,1754780913032,-137.4981284,0.00021095,2]
[378200597,1754780913056,-61.7557432,0.00021095,2]
[378200598,1754780914989,-177.36082434,0.00021088,10]
[378200599,1754780916389,-241.62026293,0.00021088,10]
[378200600,1754780918088,-228.60670387,0.00021088,10]
[378200601,1754780919554,-118.18220886,0.00021088,10]
[378200602,1754780919578,-398.2442568,0.00021095,2]
[378200603,1754780919602,-177.19317094,0.00021095,2]
[378200604,1754780925636,809.2427752,0.00020995,2]
[378200605,1754780937484,168.185797,0.00020097,2]
[378200606,1754780944444,-205.86275441,0.00021073,2]
[378200609,1754780953930,-167.02182767,0.00021073,2]
[378200610,1754780956082,-206.10990735,0.00021073,2]
[378200611,1754780957639,-203.000812,0.00021073,2]
[378200612,1754780959855,-302.50162471,0.00021073,2]
[378200613,1754780961545,-301.51757118,0.00021073,2]
[378200614,1754780961964,777.01208273,0.00018988,2]
[378200615,1754780963127,-117.66025007,0.00021073,2]
[378200616,1754780963149,-49.55363733,0.00021088,2]
[378200617,1754780971344,2766.29552633,0.000199,2]
[378200662,1754781032200,-420.67332947,0.00021088,2]
[378200664,1754781032211,-638.15,0.00021088,10]
[378200666,1754781032221,-531.79,0.00021088,10]
[378200668,1754781032230,-300.0,0.00021094,2]
[378200670,1754781032240,-300.0,0.00021094,2]
[378200672,1754781032249,-300.0,0.00021094,2]
[378200674,1754781032259,-282.80682906,0.00021095,2]
[378200676,1754781032269,-460.0,0.00021095,2]
[378200678,1754781032278,-616.79737527,0.00021095,2]
[378200727,1754781037970,-443.16,0.00021088,10]
[378200728,1754781037980,-2.94262473,0.00021095,2]
[378200729,1754781037991,-569.87084336,0.00021095,2]
[378200730,1754781038001,-460.0,0.00021095,2]
[378200731,1754781038013,-460.0,0.00021095,2]
[378200732,1754781038026,-460.0,0.00021095,2]
[378200733,1754781038035,-460.0,0.00021095,2]
[378200734,1754781038044,-460.0,0.00021095,2]
[378200735,1754781038053,-460.0,0.00021095,2]
[378200736,1754781038062,-460.0,0.00021095,2]
[378200737,1754781038071,-460.0,0.00021095,2]
[378200738,1754781038080,-460.0,0.00021095,2]
[378200739,1754781038089,-460.0,0.00021095,2]
[378200740,1754781038099,-434.00459905,0.00021096,2]
[378200741,1754781038108,-460.0,0.00021096,2]
[378200742,1754781038118,-460.0,0.00021096,2]
[378200743,1754781038127,-464.98555228,0.00021096,2]
[378200744,1754781038136,-460.0,0.00021096,2]
[378200745,1754781038145,-462.04276543,0.00021096,2]
[378200746,1754781038154,-460.0,0.00021096,2]
[378200747,1754781038164,-460.0,0.00021096,2]
[378200748,1754781038173,-460.0,0.00021096,2]
[378200749,1754781038183,-460.0,0.00021096,2]
[378200750,1754781038193,-460.0,0.00021096,2]
[378200751,1754781038202,-464.75989854,0.00021096,2]
[378200752,1754781038211,-460.0,0.00021096,2]
[378200753,1754781038220,-460.0,0.00021096,2]
[378200754,1754781038230,-460.0,0.00021096,2]
[378200755,1754781038239,-460.0,0.00021096,2]
[378200756,1754781038249,-460.0,0.00021096,2]
[378200757,1754781038258,-480.0,0.00021096,2]
[378200758,1754781038267,-460.0,0.00021096,2]
[378200759,1754781038276,-460.0,0.00021096,2]
[378200760,1754781038285,-460.0,0.00021096,2]
[378200761,1754781038294,-460.0,0.00021096,2]
[378200762,1754781038303,-460.0,0.00021096,2]